Cogmind - Beta 13 @@@ ROGUE MODE // 2024.04.06 @ 19:44:51 Player: Tophor Result: Destroyed by C-40 Crusher with Compactor Performance ------------- Evolutions (3) 1500 Regions Visited (6) 1200 Robots Destroyed (66) 330 Value Destroyed (1760) 1760 Prototype IDs (5) 100 Alien Tech Used (0) 0 Bonus (109) 109 TOTAL SCORE: 4999 Bonus ------- High Alert Combat Kills 109 Cogmind --------- Core Integrity 0/700 Matter 197/300 Energy 75/100 System Corruption 7% Temperature Cool (0) Movement Core (50) Location -7/Waste Parts ------- > --- POWER (1) -------- (None) > --- PROPULSION (4) --- (None) > --- UTILITY (4) ------ (None) > --- WEAPON (4) ------- (None) > --- INVENTORY (5) ---- Light Nuclear Core Light Armor Plating Shield Generator Decoy Drone Bay (16/16) Peak State ------------ > --- POWER ------------ Light Nuclear Core > --- PROPULSION ------- Aluminum Leg Aluminum Leg Aluminum Leg Carbon-fiber Leg > --- UTILITY ---------- Large Storage Unit Light Armor Plating Hacking Suite System Shield > --- WEAPON ----------- Heavy Particle Cannon High-powered Shotgun High-powered Shotgun Improved Plasma Cutter > --- INVENTORY -------- Light Nuclear Core Light Nuclear Core Aluminum Leg Compact Matter Pod Machine Analyzer Advanced ECM Suite Light Armor Plating Shield Generator Decoy Drone Bay Shock Rifle Advanced Beam Rifle Rocket Launcher [Rating: 36] Favorites ----------- Power Light Ion Engine Engine Light Ion Engine Power Core Light Nuclear Core Propulsion Aluminum Leg Leg Aluminum Leg Utility Medium Storage Unit Device Improved Heat Sink Storage Medium Storage Unit Hackware Hacking Suite Protection Light Armor Plating Weapon Beam Cannon Energy Gun Improved Medium Laser Energy Cannon Beam Cannon Ballistic Gun High-powered Shotgun Launcher Rocket Launcher Special Weapon Enhanced Flamer Build | -11 -10 -9 -9 -8 -7 -7 ------- Run | Yrd Mat Mat Min Mat Fac Was Slots Evolved 6 | . . 2 . 2 2 . Power . | . . . . . . . Propulsion 2 | . . 2 . . . . Utility 2 | . . . . 1 1 . Weapon 2 | . . . . 1 1 . Parts Attached 53 | 6 9 15 11 6 5 1 Power 6 | 1 1 2 1 . 1 . Engine 5 | 1 1 2 1 . . . Core 1 | . . . . . 1 . Reactor . | . . . . . . . Propulsion 17 | 2 1 6 7 . 1 . Treads . | . . . . . . . Leg 17 | 2 1 6 7 . 1 . Wheel . | . . . . . . . Hover . | . . . . . . . Flight . | . . . . . . . Utility 10 | 1 2 2 1 3 1 . Device 1 | . . 1 . . . . Storage 3 | 1 1 . . 1 . . Processor . | . . . . . . . Hackware 2 | . . . . 2 . . Protection 4 | . 1 1 1 . 1 . Artifact . | . . . . . . . Weapon 20 | 2 5 5 2 3 2 1 Energy Gun 4 | 1 2 . . 1 . . Energy Cannon 3 | . . 2 . 1 . . Ballistic Gun 8 | 1 1 2 1 1 2 . Ballistic Cannon . | . . . . . . . Launcher 3 | . 2 1 . . . . Special Weapon 2 | . . . 1 . . 1 Impact Weapon . | . . . . . . . Slashing Weapon . | . . . . . . . Piercing Weapon . | . . . . . . . Special Melee Weapon . | . . . . . . . Unidentified Prototypes 1 | . 1 . . . . . Parts Lost 20 | . 2 8 5 . . 5 Power 4 | . 1 2 1 . . . Propulsion 6 | . . 3 2 . . 1 Utility 4 | . . 1 1 . . 2 Weapon 6 | . 1 2 1 . . 2 Highest Loss Streak 5 | . 2 5 1 . . 5 To Critical Strikes . | . . . . . . . Average Slot Usage (%) 93 | . 92 95 96 95 94 59 Engine 10 | . 13 10 9 9 2 . Leg 35 | . 28 40 43 36 29 17 Device 4 | . . 6 9 . . . Storage 11 | . 14 11 11 9 7 4 Hackware 1 | . . . . 7 15 9 Protection 4 | . 7 3 . 6 5 4 Energy Gun 4 | . 8 1 . 6 7 . Energy Cannon 5 | . . 8 11 4 7 3 Ballistic Gun 10 | . 13 8 5 15 12 8 Launcher 2 | . 4 3 . . . . Special Weapon 1 | . . . 5 . . 3 Naked Turns 36 | . . . . . . 36 Heaviest Build 45 | 12 23 27 26 39 45 43 Greatest Support 48 | 20 20 43 48 45 45 45 Greatest Overweight (x) 1 | . 1 . . . . . Average Overweight (x) . | . . . . . . . Largest Inventory Capacity 15 | 8 10 10 10 15 15 15 Average Capacity 10 | 7 9 10 10 14 15 11 Most Carried 13 | 5 10 10 10 11 12 13 Average Carried 9 | 2 8 9 9 9 9 10 Final Capacity 15 | 8 10 10 10 15 15 5 Final Carried 12 | 2 10 10 10 11 12 5 Class Distribution -------------------- 43% | Mutant 40% | Scavenger-Mutant 12% | Scavenger-Tank 3% | Scavenger-Gunner Dominant Class ---------------- Mutant | -10/Materials Scavenger-Mutant | -9/Materials Scavenger-Mutant | -9/Mines Scavenger-Tank | -8/Materials Scavenger-Tank | -7/Factory Scavenger-Tank | -7/Waste Resources | -11 -10 -9 -9 -8 -7 -7 ----------- Run | Yrd Mat Mat Min Mat Fac Was Matter Collected 1417 | 253 252 582 206 6 118 . Remotely . | . . . . . . . Salvage Created 1985 | . 522 776 503 6 178 . Parts 150 | . 45 61 27 3 14 . Haulers Intercepted . | . . . . . . . Recyclers Shooed 1 | . 1 . . . . . Parts Field Recycled . | . . . . . . . Retrieved Matter . | . . . . . . . Parts Self-Destructed . | . . . . . . . Prevented . | . . . . . . . Kills | -11 -10 -9 -9 -8 -7 -7 ------- Run | Yrd Mat Mat Min Mat Fac Was Combat Hostiles Destroyed 45 | . 11 20 11 . 3 . Guns 19 | . 9 5 3 . 2 . Cannons 15 | . . 6 8 . 1 . AOE 11 | . 2 9 . . . . Classes Destroyed 14 | . 7 3 2 . 2 . Worker 5 | . 2 2 1 . . . Builder 2 | . 1 1 . . . . Tunneler 1 | . . 1 . . . . Recycler 3 | . 2 . 1 . . . Mechanic 1 | . . . . . 1 . Operator 3 | . 1 1 . 1 . . Watcher 6 | . 3 3 . . . . Swarmer 10 | . 6 4 . . . . Grunt 23 | . 5 7 9 . 2 . Brawler 1 | . . . 1 . . . Duelist 2 | . . 2 . . . . Sentry 7 | . . 7 . . . . Demolisher 1 | . . . 1 . . . Hunter 1 | . . . . . 1 . Best Kill Streak 5 | . 5 5 4 1 3 . Combat Bots Only 5 | . 5 3 3 . 2 . Max Kills in Single Turn 2 | . 2 2 2 1 1 . Gunslinging . | . . . . . . . Exploded 2 | . 1 2 . . . . Melee . | . . . . . . . Uniques/NPCs Destroyed . | . . . . . . . Combat | -11 -10 -9 -9 -8 -7 -7 -------- Run | Yrd Mat Mat Min Mat Fac Was Hostile Shots Fired 238 | . 51 114 50 . 6 17 Missed 67 | . 16 34 16 . 1 . Damage Taken 2952 | . 400 1076 623 . 77 776 Core 1065 | . 101 179 76 . 23 686 Absorbed by Shields . | . . . . . . . Regen/Repaired (Parts) 208 | . . 81 . . 127 . Core Remaining (%) 73 | 100 59 . 36 100 . . Volleys Fired 194 | . 55 89 34 7 5 4 Largest 4 | . 2 2 2 3 4 4 Hottest 175 | . 76 120 140 150 175 145 Shots Fired 317 | . 70 150 47 21 18 11 Gun 178 | . 66 64 11 19 13 5 Cannon 106 | . . 63 34 2 5 2 Launcher 27 | . 4 23 . . . . Special 6 | . . . 2 . . 4 Kinetic 149 | . 55 58 11 12 8 5 Thermal 128 | . 10 69 36 2 5 6 Explosive 27 | . 4 23 . . . . Electromagnetic 13 | . 1 . . 7 5 . Robot Hit Streak 15 | . 15 8 6 2 7 2 Robot Miss Streak 11 | . 5 11 6 8 6 1 Penetration Max . | . . . . . . . Secondary Targets . | . . . . . . . Shots Hit Robots 178 | . 42 83 34 6 10 3 Core Hits 100 | . 27 46 16 3 7 1 Critical Kills . | . . . . . . . Critical Parts Destroyed . | . . . . . . . Critical Strikes 2 | . 1 . 1 . . . Burn 2 | . 1 . 1 . . . Melee Attacks . | . . . . . . . Impact . | . . . . . . . Slashing . | . . . . . . . Piercing . | . . . . . . . Sneak Attacks . | . . . . . . . Combat Hostiles . | . . . . . . . Follow-up Attacks . | . . . . . . . Damage Inflicted 3749 | . 738 2038 621 105 205 42 Guns 1543 | . 525 579 167 105 155 12 Cannons 1050 | . . 578 422 . 50 . Explosions 1094 | . 213 881 . . . . Melee . | . . . . . . . Ramming 10 | . . . 10 . . . Kinetic 1365 | . 408 554 167 105 119 12 Thermal 1244 | . 117 603 444 . 50 30 Explosive 1094 | . 213 881 . . . . Electromagnetic 36 | . . . . . 36 . Impact . | . . . . . . . Slashing . | . . . . . . . Piercing . | . . . . . . . Highest Corruption 7 | . . . . . . 7 Average Corruption 7 | . . . . . . 7 Corruption Purged . | . . . . . . . Corruption Blocked . | . . . . . . . Effects 4 | . . . . . . 4 Message Errors 1 | . . . . . . 1 Matter Fused 1 | . . . . . . 1 Energy Discharges 1 | . . . . . . 1 Data Loss (minor) 1 | . . . . . . 1 Overload Shots . | . . . . . . . Overflow Damage 33 | . . 33 . . . . Projectiles 12 | . . 12 . . . . Explosions 21 | . . 21 . . . . Melee . | . . . . . . . Knockbacks . | . . . . . . . Impact . | . . . . . . . Kinetic . | . . . . . . . Secondary . | . . . . . . . Self-Inflicted Damage 166 | . 40 126 . . . . Shots 6 | . 1 5 . . . . Rammed . | . . . . . . . Targets Rammed 2 | . . . 2 . . . Kicked 2 | . . . 2 . . . Crushed . | . . . . . . . Highest Temperature 499 | . 102 499 139 75 198 82 Average Temperature 90 | . 40 138 50 31 87 45 Received Heat Transfer 624 | . 123 339 144 . 18 . Effects 5 | . . 5 . . . . Shutdowns 2 | . . 2 . . . . Interference 1 | . . 1 . . . . Matter Decay 1 | . . 1 . . . . Damage (major) 1 | . . 1 . . . . Siege Activations . | . . . . . . . Robots Corrupted . | . . . . . . . Combat Hostiles . | . . . . . . . Parts Fried . | . . . . . . . Impact Corruptions . | . . . . . . . Robots Melted . | . . . . . . . Combat Hostiles . | . . . . . . . Parts Melted 5 | . 2 2 1 . . . Heat Transferred 3021 | . 333 1332 1208 . 74 74 Parts Sabotaged . | . . . . . . . Parts Stolen . | . . . . . . . Parts Stripped . | . . . . . . . Power Chain Reactions . | . . . . . . . Alert | -11 -10 -9 -9 -8 -7 -7 ------- Run | Yrd Mat Mat Min Mat Fac Was Peak Influence 663 | . 311 663 338 63 118 56 Initial 228 | . . 40 228 49 28 41 Average 246 | . 149 486 227 52 43 25 Maximum Alert Level 2 | . 1 2 1 . . . Low Security (%) 48 | 100 57 12 41 100 100 100 Level 1 27 | . 42 5 58 . . . Level 2 24 | . . 81 . . . . Level 3 . | . . . . . . . Level 4 . | . . . . . . . Level 5 . | . . . . . . . High Security . | . . . . . . . Max Security . | . . . . . . . Squads Dispatched 4 | . 1 3 . . . . Investigation 1 | . . 1 . . . . Extermination . | . . . . . . . Reinforcement 3 | . 1 2 . . . . Assault . | . . . . . . . Garrison . | . . . . . . . Intercept . | . . . . . . . Searches Triggered . | . . . . . . . Construction Impeded 1 | . . 1 . . . . Haulers Reinforced . | . . . . . . . Active Scanning Responses . | . . . . . . . Cargo Convoy Interrupts . | . . . . . . . Stealth | -11 -10 -9 -9 -8 -7 -7 --------- Run | Yrd Mat Mat Min Mat Fac Was Distress Signals 4 | . . 3 . . 1 . Communications Jammed . | . . . . . . . Distress Signals . | . . . . . . . Times Spotted 89 | . 17 32 26 4 4 6 Peak Tracking Total 12 | . 5 7 12 2 2 6 Tactical Retreats 5 | . 2 2 1 . . . Traps | -11 -10 -9 -9 -8 -7 -7 ------- Run | Yrd Mat Mat Min Mat Fac Was Traps Triggered 1 | . . . . . 1 . Indirectly . | . . . . . . . Trap Hack Attempts . | . . . . . . . Triggered . | . . . . . . . Disarmed . | . . . . . . . Reprogrammed . | . . . . . . . Reused . | . . . . . . . Traps Extracted . | . . . . . . . Installed . | . . . . . . . Triggered . | . . . . . . . Machines | -11 -10 -9 -9 -8 -7 -7 ---------- Run | Yrd Mat Mat Min Mat Fac Was Machines Disabled 5 | . . 5 . . . . Max in Single Turn 2 | . . 2 . . . . Machines Repaired . | . . . . . . . Machines Dismantled . | . . . . . . . Machines Sabotaged . | . . . . . . . Overloaded Fab Kills . | . . . . . . . Hacking | -11 -10 -9 -9 -8 -7 -7 --------- Run | Yrd Mat Mat Min Mat Fac Was Machines Accessed 20 | . 5 8 1 4 2 . Terminals 15 | . 5 6 . 3 1 . Fabricators . | . . . . . . . Repair Stations 3 | . . 2 . . 1 . Recycling Units . | . . . . . . . Scanalyzers 1 | . . . . 1 . . Garrison Access . | . . . . . . . Total Hacks 65 | . 12 21 1 23 8 . Successful 37 | . 6 11 1 12 7 . Failed 28 | . 6 10 . 11 1 . Catastrophic 6 | . . 3 . 2 1 . Database Lockouts . | . . . . . . . Manual 9 | . . 6 . 3 . . Terminals 49 | . 12 15 . 21 1 . Fabricators . | . . . . . . . Repair Stations 13 | . . 6 . . 7 . Recycling Units . | . . . . . . . Scanalyzers 2 | . . . . 2 . . Garrison Access . | . . . . . . . Terminal Hacks 23 | . 6 6 1 10 . . Record 5 | . 1 1 . 3 . . Robot Analysis 2 | . . 1 . 1 . . Prototype ID Bank 1 | . . 1 . . . . Open Door 1 | . . . 1 . . . Branch Access Points 1 | . . 1 . . . . Emergency Access Points 4 | . 2 . . 2 . . Locate Traps 3 | . 1 1 . 1 . . Dispatch Records 1 | . . . . 1 . . Patrol Status 1 | . 1 . . . . . Investigation Status 1 | . . . . 1 . . Assault Status 1 | . . . . 1 . . Recall Reinforcements 1 | . . 1 . . . . Zone Layout 1 | . 1 . . . . . Fabricator Hacks . | . . . . . . . Repair Station Hacks 12 | . . 5 . . 7 . Scan Component 7 | . . 3 . . 4 . Repair 4 | . . 1 . . 3 . Refit 1 | . . 1 . . . . Recycling Unit Hacks . | . . . . . . . Scanalyzer 2 | . . . . 2 . . Insert Component 2 | . . . . 2 . . Garrison Access Hacks . | . . . . . . . Unauthorized Hacks . | . . . . . . . Terminals . | . . . . . . . Fabricators . | . . . . . . . Repair Stations . | . . . . . . . Recycling Units . | . . . . . . . Scanalyzers . | . . . . . . . Garrison Access . | . . . . . . . Data Cores Recovered 2 | . . 1 . 1 . . Used . | . . . . . . . Hacking Detections 15 | . 4 7 . 2 2 . Full Trace Events 2 | . . 1 . 1 . . Feedback Events . | . . . . . . . Feedback Blocked . | . . . . . . . Robot Schematics Acquired . | . . . . . . . Robots Built . | . . . . . . . Authchips . | . . . . . . . Time . | . . . . . . . Total Robot Build Rating . | . . . . . . . Part Schematics Acquired . | . . . . . . . Parts Built . | . . . . . . . Authchips . | . . . . . . . Time . | . . . . . . . Total Part Build Rating . | . . . . . . . Parts Repaired 4 | . . 1 . . 3 . Time 146 | . . 32 . . 114 . Parts Recycled . | . . . . . . . Recycled Matter . | . . . . . . . Retrieved Matter . | . . . . . . . Retrieved Components . | . . . . . . . Parts Scanalyzed . | . . . . . . . Part Schematics Acquired . | . . . . . . . Parts Damaged . | . . . . . . . Bothacking | -11 -10 -9 -9 -8 -7 -7 ------------ Run | Yrd Mat Mat Min Mat Fac Was Used RIF Installer . | . . . . . . . Robots Hacked . | . . . . . . . Non-combat . | . . . . . . . Combat . | . . . . . . . Robot Hacks Applied . | . . . . . . . Relay Couplers Released . | . . . . . . . Fabnet Peak Effective % . | . . . . . . . Robots Rewired . | . . . . . . . Allies Hacked . | . . . . . . . Hacks Repelled . | . . . . . . . Allies | -11 -10 -9 -9 -8 -7 -7 -------- Run | Yrd Mat Mat Min Mat Fac Was Total Allies 1 | . . . . . . 1 Largest Group 1 | . . . . . . 1 Highest-Rated Group 31 | . . . . . . 31 Highest-Rated Ally 31 | . . . . . . 31 Total Orders . | . . . . . . . Ally Attacks 9 | . . . . . . 9 Total Damage 165 | . . . . . . 165 Kills . | . . . . . . . Allies Corrupted . | . . . . . . . Allies Melted . | . . . . . . . Intel | -11 -10 -9 -9 -8 -7 -7 ------- Run | Yrd Mat Mat Min Mat Fac Was Robot Analysis Total 2 | . . 1 . 1 . . Derelict Logs Recovered 1 | . . . 1 . . . Drone Launches . | . . . . . . . Drone Recoveries . | . . . . . . . Exploration | -11 -10 -9 -9 -8 -7 -7 ------------- Run | Yrd Mat Mat Min Mat Fac Was Turns Passed 3972 | 85 1164 1182 888 229 313 111 Spaces Moved 2311 | 70 612 702 583 158 141 45 Core 18 | 18 . . . . . . Treads . | . . . . . . . Legs 2293 | 52 612 702 583 158 141 45 Wheels . | . . . . . . . Hover . | . . . . . . . Flight . | . . . . . . . Fastest Speed 50 | 50 120 120 120 120 120 120 Average Speed 129 | 102 157 120 120 120 120 120 Slowest Speed 190 | 120 190 120 120 120 120 120 Overloaded Moves . | . . . . . . . Propulsion Burnouts . | . . . . . . . Robots Hopped . | . . . . . . . Cave-ins Triggered . | . . . . . . . Exploration Rate (%) 40 | 5 85 61 64 17 3 46 Regions Visited 6 Branch Regions 1 Pre-discovered Areas . | . . . . . . . Known Exits Taken 2 | . . 1 . 1 . . Unknown Exits Taken 3 | 1 1 . 1 . . . Scrap Searched 1 | . . . 1 . . . Spaces Dug 2 | . . . . 2 . . Terrain Destroyed 150 | . 24 124 . 2 . . Melee . | . . . . . . . Projectile 2 | . . . . 2 . . AOE 148 | . 24 124 . . . . Terrain Rammed . | . . . . . . . Walls Destroyed . | . . . . . . . Machines Disabled . | . . . . . . . Actions | -11 -10 -9 -9 -8 -7 -7 --------- Run | Yrd Mat Mat Min Mat Fac Was Total 2999 | 83 746 902 724 181 274 89 Wait 351 | . 40 75 83 1 114 38 Move 2306 | 69 611 701 582 157 141 45 Hop . | . . . . . . . Pick Up 58 | 8 19 13 4 7 6 1 Fast Attach 9 | . . 2 3 2 2 . Attach 32 | 6 8 12 2 2 2 . Detach 7 | . 3 3 . 1 . . Swap 12 | . 1 1 6 2 1 1 Drop 28 | . 9 6 8 2 3 . Fire 194 | . 55 89 34 7 5 4 Melee . | . . . . . . . Ram . | . . . . . . . Kick 2 | . . . 2 . . . Crush . | . . . . . . . Escape Stasis . | . . . . . . . Rewire . | . . . . . . . Trap . | . . . . . . . Miscellaneous . | . . . . . . . Route ------- -11/Scrapyard -10/Materials (discovered 3 exits: *Mat x2 / [*Min]) -9/Materials (discovered 2 exits: *Min x2) -9/Mines -8/Materials (discovered 3 exits: *Fac x2 / Sto) -7/Factory -7/Waste History --------- Turn | Location | Event 6 | -11/Scrapyard | Discovered new exit (range 15) 86 | -11/Scrapyard | Entered Materials 315 | -10/Materials | Build established: Mutant 361 | -10/Materials | Discovered new exit (range 12) 723 | -10/Materials | Discovered new exit (range 12) 1041 | -10/Materials | Discovered new exit (range 8) 1250 | -10/Materials | Entered another Materials area 1250 | -9/Materials | Evolved 2 slots: Propulsion x2 1266 | -9/Materials | Identified exit to Mines 1650 | -9/Materials | Lost 5 parts (1p2n1u1w) 2000 | -9/Materials | Build established: Scavenger-Mutant 2339 | -9/Materials | Repaired Imp. Aluminum Leg 2432 | -9/Materials | Entered Mines 2530 | -9/Mines | Learned 2 Materials zone layouts 2537 | -9/Mines | Found the Drone Emporium 2550 | -9/Mines | Found Prototype Device 2660 | -9/Mines | Assembled infested the area 2666 | -9/Mines | A weapon hastily lodged in a ceiling crevice suddenly fell to the ground 2681 | -9/Mines | Core integrity fell below 50% 3238 | -9/Mines | Discovered new exit (range 9) 3320 | -9/Mines | Entered Materials 3320 | -8/Materials | Evolved 2 slots: Utility x1, Weapon x1 3321 | -8/Materials | Identified exit to Factory 3321 | -8/Materials | Identified exit to Storage 3448 | -8/Materials | Discovered exit to Factory (range 13) 3474 | -8/Materials | Identified Decoy Drone Bay 3549 | -8/Materials | Entered Factory 3549 | -7/Factory | Evolved 2 slots: Utility x1, Weapon x1 3669 | -7/Factory | Repaired Lgt. Nuclear Core 3708 | -7/Factory | Repaired Carbon-fiber Leg 3748 | -7/Factory | Repaired Hpw. Shotgun 3862 | -7/Factory | Sucked down chute 3862 | -7/Factory | Entered Waste 3863 | -7/Waste | Met a frightened Derelict 3875 | -7/Waste | Spotted C-40 Crusher 3877 | -7/Waste | EMP discharged 3878 | -7/Waste | Spotted C-40 Crusher 3883 | -7/Waste | Spotted C-40 Crusher 3898 | -7/Waste | Spotted C-40 Crusher 3900 | -7/Waste | Spotted C-40 Crusher 3913 | -7/Waste | Build established: Scavenger-Tank 3925 | -7/Waste | Crushed by Compactor (1 part destroyed, 2 dropped) 3928 | -7/Waste | Crushed by Compactor (1 part destroyed, 2 dropped) 3930 | -7/Waste | Spotted C-40 Crusher 3931 | -7/Waste | Crushed by Compactor (1 part destroyed, 2 dropped) 3934 | -7/Waste | Crushed by Compactor (1 part destroyed, 1 dropped) 3937 | -7/Waste | Crushed by Compactor (1 part destroyed, 1 dropped) 3950 | -7/Waste | Core integrity fell below 50% 3965 | -7/Waste | Core integrity fell below 20% 3968 | -7/Waste | Lost 5 parts (1n2u2w) 3973 | -7/Waste | Destroyed by C-40 Crusher with Compactor Last Messages --------------- Lgt. Armor Plating crushed. Hpw. Shotgun crushed. Aluminum Leg crushed. Hpw. Shotgun crushed. Imp. Plasma Cutter crushed. Lrg. Storage Unit crushed. System corrupted: Component data lost. Lgt. Nuclear Core crushed. Shock Rifle crushed. Lrg. Storage Unit crushed. Faulty Adv. Beam Rifle crushed. Machine Analyzer crushed. Hacking Suite crushed. System Shield crushed. Com. Matter Pod crushed. Adv. ECM Suite crushed. Rocket Launcher crushed. Aluminum Leg crushed. ALERT: Foreign system detected. Charging EMP. System corrupted: Energy discharge (-40). Map ----- +----------------------------------------------------+ | ?????????????????????????????????????????????????? | | ?????????????????????????????????????????????????? | | ?????????????????????????????????????????????????? | | ?????????????????????????????????????????????????? | | ?????????????????????????????????????????????????? | | ?????????????????????????????????????????????????? | | ?????????????????????????????????????????????????? | | ?????????????????????????????????????????????????? | | ?????????????????????????????????????????????????? | | ?????????????????????????????????????????????????? | | ?????????????????????????????????????????????????? | | ?????????????????????????????????????????????????? | | ?????????????????????????????????????????????????? | | ?????????????????????????????????????????????????? | | ?????????????????????????????????????????????????? | | ?????????????????????????????????????????????????? | | ?????????????????????????????????????????????????? | | ?????????????????????????????????????????????????? | | ?????????????????????????????????????????????????? | | ?????????????????????????????????????????????????? | | ?????????????????????????????????????????????????? | | ?????????????????????????????????????????????????? | | ?????????????????????????????????????????????????? | | ?????????????????????????????????????????????????? | | ?????????????????????######??????????????????????? | | ?????????? ???????#CC=@#??????????????????????? | | ?????????# #??????#CCCC#??????????????????????? | | ?????????# #??????#CCCC#??????????????????????? | | ?????????# #??????#CCCC#??????????????????????? | | ???????### ######## CC#??????????????????????? | | ???????# CC#??????????????????????? | | ???????# CC#??????????????????????? | | ???????? #??????????????????????? | | ????????? #??????????????????????? | | ?????????# ######## #??????????????????????? | | #######??# #??????# #??????????????????????? | | #??# #??????# #??????????????????????? | | #??# #??????# #???????????#??????????? | | #### ######## ######## ##?????????? | | ??????? | | ??????? | | =! ??????? | | ??????? | | #### ######## ######## ####???????? | | #??# #??????# #????????? #??????????? | | #??# #??????# #???????????#??????????? | | #######??# #??????# #??????????????????????? | | ?????????# #??????# #??????????????????????? | | ????????? ?????? #??????????????????????? | | ???????? ???? #??????????????????????? | +----------------------------------------------------+ Best States ------------- Heat Dissipation 42 Energy Generation 14 Energy Capacity 265 Matter Stores 300 Matter Capacity 300 Sight Range 16 Terrain Scan Density 10 Armor Coverage 225 Evasion (%) 55 Offensive Hacking 10 Defensive Hacking 10 Item Schematics ----------------- None Robot Schematics ------------------ None Fabricated ------------ Nothing Alien Tech Used ----------------- None Achievements -------------- GoHome() I Survived The Infestation Slippery One Challenges ------------ None Game ------ Seed SwarmImpulseCorpse Manual? 0 Play Time 01:03:31 Cumulative 4.3 hours Start 2024.04.06 @ 16:34:34 End 2024.04.06 @ 19:44:51 Sessions 3 Manual Loads 0 Difficulty Rogue Special Mode None Game No. 5 Rogue 5 Adventurer 0 Explorer 0 Win Type - Total 0 Types 0/0/0/0/0/0/0/0/0 Lore% 6 Gallery% 7 Achievement% 8 Wizard Run 0 Options --------- Layout 0 ASCII 0 Keyboard 0 Movement Numpad Keybinds 0 Fullscreen 1 Font 18/SmallcapsGlow Map View 76x50 Zoom Use 0% Tactical HUD 0 Map Filters NONE Filters NONE Steam 1 RUN: 25161967-f5ed-421f-9156-243c79c86512